[Event "44th Chess Olympiad Open 2022"]
[Site "Chennai"]
[Date "2022.07.31"]
[Round "3.69"]
[White "Myat Thiri Aung Kyaw"]
[Black "Samuel Merhawi Gebrehiwet"]
[Result "1-0"]
[WhiteElo "2120"]
[BlackElo "1616"]
[Annotator "NA"]
[PlyCount "104"]
[EventDate "2022.??.??"]
[TimeControl "60"]

1. e4 {[%emt 0:02:00]} c5 {[%emt 0:00:09]} 2. Nf3 {[%emt 0:00:15]} Nc6 {
[%emt 0:00:58]} 3. d4 {[%emt 0:01:12]} cxd4 {[%emt 0:00:11]} 4. Nxd4 {[%emt 0:
00:00]} Nf6 {[%emt 0:00:11]} 5. Nc3 {[%emt 0:00:43]} d6 {[%emt 0:00:38]} 6. Nb3
{[%emt 0:07:47]} g6 {[%emt 0:00:29]} 7. f3 {[%emt 0:00:57]} Bg7 {[%emt 0:00:07]
} 8. Be3 {[%emt 0:00:10]} Be6 {[%emt 0:04:03]} 9. Qd2 {[%emt 0:00:49]} O-O {
[%emt 0:03:34]} 10. g4 {[%emt 0:00:46]} a5 {[%emt 0:00:53]} 11. Nd4 {[%emt 0:
00:00]} Nxd4 {[%emt 0:00:54]} 12. Bxd4 {[%emt 0:00:04]} d5 {[%emt 0:01:07]} 13.
g5 {[%emt 0:01:04]} Nh5 {[%emt 0:03:27]} 14. Bxg7 {[%emt 0:01:52]} Kxg7 {
[%emt 0:00:19]} 15. exd5 {[%emt 0:00:22]} Bf5 {[%emt 0:00:30]} 16. O-O-O {
[%emt 0:00:37]} a4 {[%emt 0:01:14]} 17. a3 {[%emt 0:00:15]} Qa5 {[%emt 0:02:42]
} 18. Bd3 {[%emt 0:01:19]} Bd7 {[%emt 0:00:23]} 19. Rhe1 {[%emt 0:03:33]} Rfe8
{[%emt 0:03:22]} 20. Re4 {[%emt 0:00:01]} Qc5 {[%emt 0:07:48]} 21. Rde1 {
[%emt 0:01:35]} e6 {[%emt 0:00:25]} 22. Qe3 {[%emt 0:01:58]} Qxe3+ {[%emt 0:00:
00]} 23. R1xe3 {[%emt 0:07:25]} exd5 {[%emt 0:08:33]} 24. Rxe8 {[%emt 0:00:08]}
Rxe8 {[%emt 0:00:51]} 25. Rxe8 {[%emt 0:00:07]} Bxe8 {[%emt 0:00:08]} 26. Nxd5
{[%emt 0:00:34]} Bc6 {[%emt 0:00:13]} 27. Be4 {[%emt 0:00:16]} h6 {[%emt 0:00:
00]} 28. h4 {[%emt 0:14:51]} Ng3 {[%emt 0:00:16]} 29. Kd2 {[%emt 0:00:36]} Nf5
{[%emt 0:01:23]} 30. Bxf5 {[%emt 0:04:52]} Bxd5 {[%emt 0:00:10]} 31. Bd7 {
[%emt 0:01:37]} Bxf3 {[%emt 0:00:38]} 32. Ke3 {[%emt 0:09:22]} Bd1 {[%emt 0:00:
00]} 33. Bxa4 {[%emt 0:00:09]} hxg5 {[%emt 0:00:48]} 34. hxg5 {[%emt 0:00:09]}
f6 {[%emt 0:00:38]} 35. Kf4 {[%emt 0:00:07]} b6 {[%emt 0:02:10]} 36. b4 {
[%emt 0:01:14]} Kf7 {[%emt 0:02:10]} 37. Bb3+ {[%emt 0:00:15]} Ke7 {[%emt 0:00:
00]} 38. a4 {[%emt 0:00:04]} Be2 {[%emt 0:00:38]} 39. Bd5 {[%emt 0:04:14]} Bd1
{[%emt 0:07:16]} 40. Be4 {[%emt 0:03:54]} f5 {[%emt 0:00:18]} 41. Bd3 {[%emt 0:
00:00]} Kd6 {[%emt 0:30:10]} 42. a5 {[%emt 0:00:26]} bxa5 {[%emt 0:00:19]} 43.
bxa5 {[%emt 0:00:02]} Kc5 {[%emt 0:02:42]} 44. a6 {[%emt 0:00:39]} Kb6 {
[%emt 0:00:09]} 45. Ke5 {[%emt 0:00:19]} Bf3 {[%emt 0:00:18]} 46. c3 {[%emt 0:
00:00]} Bc6 {[%emt 0:01:40]} 47. Be2 {[%emt 0:00:56]} Kc5 {[%emt 0:01:16]} 48.
Kf6 {[%emt 0:01:03]} f4 {[%emt 0:00:33]} 49. Kxg6 {[%emt 0:01:19]} f3 {[%emt 0:
00:00]} 50. Bf1 {[%emt 0:00:26]} f2 {[%emt 0:05:10]} 51. Kf6 {[%emt 0:01:12]}
Bb5 {[%emt 0:00:13]} 52. a7 {[%emt 0:00:24]} Kb6 {[%emt 0:09:26]} 1-0

[Event "44th Chess Olympiad Open 2022"]
[Site "Chennai"]
[Date "2022.07.31"]
[Round "3.69"]
[White "Sai Han Thiha"]
[Black "Kibrom Weldegebriel Beraki"]
[Result "1-0"]
[WhiteElo "1974"]
[BlackElo "1793"]
[Annotator "NA RC"]
[PlyCount "89"]
[EventDate "2022.??.??"]
[TimeControl "60"]

1. Nf3 {[%emt 0:00:03]} Nf6 {[%emt 0:00:10]} 2. b3 {[%emt 0:00:06]} d6 {
[%emt 0:00:45]} 3. d4 {[%emt 0:00:11]} c5 {[%emt 0:00:33]} 4. e3 {[%emt 0:00:
00]} g6 {[%emt 0:00:39]} 5. Bb2 {[%emt 0:00:15]} cxd4 {[%emt 0:00:34]} 6. Nxd4
{[%emt 0:00:21]} Bg7 {[%emt 0:00:19]} 7. Be2 {[%emt 0:00:25]} O-O {[%emt 0:00:
00]} 8. O-O {[%emt 0:00:39]} Nc6 {[%emt 0:00:33]} 9. c4 {[%emt 0:10:27]} a6 {
[%emt 0:04:27]} 10. Nc3 {[%emt 0:07:10]} Bd7 {[%emt 0:02:34]} 11. Qd2 {[%emt 0:
00:00]} Rc8 {[%emt 0:15:29]} 12. Rfe1 {[%emt 0:03:09]} Re8 {[%emt 0:12:28]} 13.
Bf1 {[%emt 0:00:50]} Na7 {[%emt 0:08:16]} 14. e4 {[%emt 0:04:11]} Nc6 {[%emt 0:
00:00]} 15. Nc2 {[%emt 0:02:15]} Ne5 {[%emt 0:01:47]} 16. Kh1 {[%emt 0:09:42]}
Qb6 {[%emt 0:03:08]} 17. h3 {[%emt 0:06:28]} Nh5 {[%emt 0:05:26]} 18. Nd5 {
[%emt 0:02:41]} Qd8 {[%emt 0:06:33]} 19. Bd4 {[%emt 0:00:23]} e6 {[%emt 0:00:
00]} 20. Nf4 {[%emt 0:20:37]} Nxf4 {[%emt 0:08:55]} 21. Qxf4 {[%emt 0:00:00]}
Qe7 {[%emt 0:01:48]} 22. Rad1 {[%emt 0:01:04]} h5 {[%emt 0:01:11]} 23. Qe3 {
[%emt 0:01:31]} Kh7 {[%emt 0:00:38]} 24. f4 {[%emt 0:01:06]} Bh6 {[%emt 0:00:
00]} 25. Qg3 {[%emt 0:00:28]} Nc6 {[%emt 0:00:36]} 26. Bb2 {[%emt 0:00:09]} e5
{[%emt 0:01:06]} 27. fxe5 {[%emt 0:01:28]} dxe5 {[%emt 0:00:17]} 28. Ba3 {
[%emt 0:03:07]} Qd8 {[%emt 0:02:31]} 29. Qf2 {[%emt 0:00:00]} Kg8 {[%emt 0:00:
00]} 30. Rd3 {[%emt 0:04:35]} Qc7 {[%emt 0:01:19]} 31. Bd6 {[%emt 0:00:05]} Qa5
{[%emt 0:00:33]} 32. a4 {[%emt 0:03:39]} Nd4 {[%emt 0:02:56]} 33. Bb4 {[%emt 0:
00:00]} Qc7 {[%emt 0:01:05]} 34. Nxd4 {[%emt 0:00:08]} exd4 {[%emt 0:00:06]}
35. Qxd4 {[%emt 0:00:08]} Bc6 {[%emt 0:00:17]} 36. Bc3 {[%emt 0:00:17]} Kh7 {
[%emt 0:01:23]} 37. e5 {[%emt 0:04:36]} Bg7 {[%emt 0:00:55]} 38. Qf4 {[%emt 0:
00:00]} b5 {[%emt 0:01:10]} 39. axb5 {[%emt 0:00:48]} axb5 {[%emt 0:00:10]} 40.
Rd6 {[%emt 0:00:48]} bxc4 {[%emt 0:02:50]} 41. Bxc4 {[%emt 0:31:07]} Bxe5 {
[%emt 0:17:13]} 42. Rxe5 {[%emt 0:00:00]} Qxd6 {[%emt 0:07:50]} 43. Rxh5+ {
[%emt 0:00:00]} gxh5 {[%emt 0:00:05]} 44. Qxf7+ {[%emt 0:00:00]} Kh6 {[%emt 0:
00:00]} 45. Qg7# {[%emt 0:00:00]} 1-0

[Event "44th Chess Olympiad Open 2022"]
[Site "Chennai"]
[Date "2022.07.31"]
[Round "3.69"]
[White "Asante Debesai Zerabruk"]
[Black "Nay Lin Tun"]
[Result "0-1"]
[WhiteElo "1785"]
[BlackElo "2045"]
[Annotator "NA RC"]
[PlyCount "111"]
[EventDate "2022.??.??"]
[TimeControl "60"]

1. e4 {[%emt 0:00:17]} c5 {[%emt 0:00:26]} 2. Nf3 {[%emt 0:00:05]} d6 {[%emt 0:
00:00]} 3. d3 {[%emt 0:00:48]} Nc6 {[%emt 0:01:08]} 4. g3 {[%emt 0:00:05]} g6 {
[%emt 0:01:30]} 5. Bg2 {[%emt 0:00:16]} Bg7 {[%emt 0:00:09]} 6. O-O {[%emt 0:
00:00]} Nf6 {[%emt 0:01:01]} 7. Re1 {[%emt 0:00:21]} O-O {[%emt 0:05:48]} 8.
Nbd2 {[%emt 0:00:04]} Bd7 {[%emt 0:01:36]} 9. Nh4 {[%emt 0:12:30]} e5 {[%emt 0:
00:00]} 10. Nf1 {[%emt 0:14:36]} Bg4 {[%emt 0:08:49]} 11. f3 {[%emt 0:06:06]}
Be6 {[%emt 0:15:06]} 12. f4 {[%emt 0:24:07]} exf4 {[%emt 0:04:47]} 13. Bxf4 {
[%emt 0:04:17]} Ng4 {[%emt 0:12:22]} 14. Qd2 {[%emt 0:13:53]} Bxb2 {[%emt 0:00:
00]} 15. Rab1 {[%emt 0:00:06]} Bd4+ {[%emt 0:00:20]} 16. Be3 {[%emt 0:00:02]}
Nxe3 {[%emt 0:01:34]} 17. Nxe3 {[%emt 0:00:05]} Rb8 {[%emt 0:01:15]} 18. c3 {
[%emt 0:00:15]} Bf6 {[%emt 0:01:21]} 19. Nf3 {[%emt 0:00:45]} Qa5 {[%emt 0:00:
00]} 20. Rec1 {[%emt 0:04:49]} Qxa2 {[%emt 0:01:41]} 21. Rb2 {[%emt 0:03:14]}
Qa5 {[%emt 0:00:44]} 22. Nc4 {[%emt 0:02:46]} Bxc4 {[%emt 0:02:18]} 23. dxc4 {
[%emt 0:00:03]} Qc7 {[%emt 0:01:31]} 24. Ne1 {[%emt 0:04:38]} Ne5 {[%emt 0:00:
00]} 25. Qe2 {[%emt 0:01:16]} Qe7 {[%emt 0:00:47]} 26. h4 {[%emt 0:02:07]} Qe6
{[%emt 0:01:13]} 27. Bf1 {[%emt 0:00:55]} Qg4 {[%emt 0:01:27]} 28. Qxg4 {
[%emt 0:00:18]} Nxg4 {[%emt 0:00:02]} 29. Ng2 {[%emt 0:00:03]} Rfe8 {[%emt 0:
00:00]} 30. Bd3 {[%emt 0:00:37]} Be5 {[%emt 0:01:50]} 31. Nf4 {[%emt 0:00:50]}
Bxf4 {[%emt 0:00:31]} 32. gxf4 {[%emt 0:00:02]} Nf6 {[%emt 0:00:54]} 33. Re1 {
[%emt 0:00:26]} Re7 {[%emt 0:00:20]} 34. Kg2 {[%emt 0:00:32]} Rbe8 {[%emt 0:00:
00]} 35. Kf3 {[%emt 0:00:22]} Nd7 {[%emt 0:01:23]} 36. Kg4 {[%emt 0:04:54]} f5+
{[%emt 0:00:41]} 37. exf5 {[%emt 0:00:59]} Rxe1 {[%emt 0:00:18]} 38. fxg6 {
[%emt 0:00:50]} Rg1+ {[%emt 0:00:29]} 39. Kf3 {[%emt 0:00:26]} b6 {[%emt 0:00:
00]} 40. gxh7+ {[%emt 0:00:29]} Kh8 {[%emt 0:00:06]} 41. h5 {[%emt 0:30:56]}
Nf6 {[%emt 0:30:34]} 42. Bg6 {[%emt 0:00:25]} Re7 {[%emt 0:00:00]} 43. Rd2 {
[%emt 0:00:00]} Rf1+ {[%emt 0:00:00]} 44. Kg2 {[%emt 0:00:00]} Rxf4 {[%emt 0:
00:00]} 45. Rxd6 {[%emt 0:00:00]} Nxh7 {[%emt 0:00:00]} 46. h6 {[%emt 0:00:00]}
Rg4+ {[%emt 0:00:00]} 47. Kf3 {[%emt 0:00:00]} Rxg6 {[%emt 0:00:00]} 48. Rxg6 {
[%emt 0:00:00]} Nf8 {[%emt 0:00:00]} 49. Rc6 {[%emt 0:00:00]} Kh7 {[%emt 0:00:
00]} 50. Kf4 {[%emt 0:00:00]} Ng6+ {[%emt 0:00:00]} 51. Kg5 {[%emt 0:00:00]}
Re5+ {[%emt 0:00:00]} 52. Kf6 {[%emt 0:00:00]} Kxh6 {[%emt 0:00:00]} 53. Rc7 {
[%emt 0:00:00]} Re7 {[%emt 0:00:00]} 54. Rc8 {[%emt 0:00:00]} Re3 {[%emt 0:00:
00]} 55. Rc6 {[%emt 0:00:00]} Rxc3 {[%emt 0:00:00]} 56. Kf5 {[%emt 0:00:00]}
0-1

[Event "44th Chess Olympiad Open 2022"]
[Site "Chennai"]
[Date "2022.07.31"]
[Round "3.71"]
[White "Mansour, Sameer"]
[Black "dos Reis, Tito"]
[Result "1-0"]
[WhiteElo "2275"]
[BlackElo "1658"]
[Annotator "RC"]
[PlyCount "71"]
[EventDate "2022.??.??"]
[TimeControl "60"]

1. c4 {[%emt 0:01:50]} d6 {[%emt 0:00:47]} 2. d4 {[%emt 0:00:15]} Nf6 {[%emt 0:
00:00]} 3. Nc3 {[%emt 0:00:10]} c6 {[%emt 0:00:24]} 4. e4 {[%emt 0:00:08]} Qa5
{[%emt 0:01:06]} 5. Bd3 {[%emt 0:00:28]} e5 {[%emt 0:01:13]} 6. d5 {[%emt 0:00:
00]} Bg4 {[%emt 0:02:56]} 7. f3 {[%emt 0:00:26]} Bd7 {[%emt 0:00:29]} 8. Be3 {
[%emt 0:02:25]} Be7 {[%emt 0:00:49]} 9. Nge2 {[%emt 0:00:18]} a6 {[%emt 0:00:
00]} 10. O-O {[%emt 0:01:25]} c5 {[%emt 0:01:55]} 11. a3 {[%emt 0:00:33]} b5 {
[%emt 0:03:38]} 12. b4 {[%emt 0:00:54]} Qc7 {[%emt 0:04:23]} 13. cxb5 {[%emt 0:
00:00]} c4 {[%emt 0:00:56]} 14. b6 {[%emt 0:00:15]} Qc8 {[%emt 0:01:29]} 15.
Bxc4 {[%emt 0:03:09]} Bd8 {[%emt 0:02:06]} 16. Qd3 {[%emt 0:04:38]} Qb7 {
[%emt 0:00:32]} 17. b5 {[%emt 0:06:51]} Bxb6 {[%emt 0:01:33]} 18. Rfb1 {
[%emt 0:18:26]} Bxe3+ {[%emt 0:00:31]} 19. Qxe3 {[%emt 0:00:03]} axb5 {[%emt 0:
00:00]} 20. Nxb5 {[%emt 0:00:17]} Bxb5 {[%emt 0:04:22]} 21. Bxb5+ {[%emt 0:00:
00]} Ke7 {[%emt 0:00:33]} 22. Bc6 {[%emt 0:00:20]} Qa7 {[%emt 0:00:34]} 23.
Rb7+ {[%emt 0:00:07]} Qxb7 {[%emt 0:03:24]} 24. Bxb7 {[%emt 0:00:03]} Ra5 {
[%emt 0:00:21]} 25. Rc1 {[%emt 0:00:24]} Nbd7 {[%emt 0:00:19]} 26. Rc7 {
[%emt 0:00:49]} Rb8 {[%emt 0:00:36]} 27. Bc6 {[%emt 0:02:34]} h6 {[%emt 0:00:
00]} 28. h4 {[%emt 0:01:29]} Kd8 {[%emt 0:00:44]} 29. Ra7 {[%emt 0:00:13]} Rc5
{[%emt 0:01:04]} 30. a4 {[%emt 0:02:13]} Rb1+ {[%emt 0:01:38]} 31. Kh2 {
[%emt 0:00:18]} Rb2 {[%emt 0:01:59]} 32. Bb5 {[%emt 0:01:19]} Rcc2 {[%emt 0:00:
00]} 33. Ra8+ {[%emt 0:00:39]} Ke7 {[%emt 0:00:20]} 34. Qa7 {[%emt 0:00:08]}
Rxe2 {[%emt 0:01:13]} 35. Bxe2 {[%emt 0:00:02]} Rxe2 {[%emt 0:00:53]} 36. Qc7 {
[%emt 0:00:45]} 1-0

[Event "44th Chess Olympiad Open 2022"]
[Site "Chennai"]
[Date "2022.07.31"]
[Round "3.71"]
[White "Aboudi, Marwan"]
[Black "de Araujo, Helder"]
[Result "0-1"]
[WhiteElo "2144"]
[BlackElo "1742"]
[Annotator "NA"]
[PlyCount "66"]
[EventDate "2022.??.??"]
[TimeControl "60"]

1. d4 {[%emt 0:03:08]} Nf6 {[%emt 0:00:18]} 2. Nf3 {[%emt 0:00:05]} e6 {
[%emt 0:00:20]} 3. c4 {[%emt 0:00:45]} d5 {[%emt 0:00:35]} 4. Nc3 {[%emt 0:00:
00]} Be7 {[%emt 0:01:02]} 5. Bg5 {[%emt 0:00:27]} b6 {[%emt 0:05:04]} 6. e3 {
[%emt 0:01:06]} O-O {[%emt 0:03:10]} 7. cxd5 {[%emt 0:01:19]} exd5 {[%emt 0:00:
00]} 8. Be2 {[%emt 0:04:37]} Bb7 {[%emt 0:01:31]} 9. O-O {[%emt 0:02:23]} Nbd7
{[%emt 0:02:19]} 10. Rc1 {[%emt 0:01:17]} c5 {[%emt 0:03:31]} 11. dxc5 {
[%emt 0:05:51]} Nxc5 {[%emt 0:02:00]} 12. Nd4 {[%emt 0:13:39]} Nfe4 {[%emt 0:
00:00]} 13. Bxe7 {[%emt 0:09:04]} Qxe7 {[%emt 0:02:27]} 14. Bb5 {[%emt 0:03:43]
} Rac8 {[%emt 0:05:09]} 15. Qg4 {[%emt 0:06:16]} a6 {[%emt 0:09:38]} 16. Be2 {
[%emt 0:00:34]} Qf6 {[%emt 0:09:52]} 17. Qf5 {[%emt 0:04:58]} Nxc3 {[%emt 0:00:
00]} 18. Rxc3 {[%emt 0:01:38]} Qe7 {[%emt 0:11:32]} 19. Rfc1 {[%emt 0:05:08]}
g6 {[%emt 0:04:30]} 20. Qf4 {[%emt 0:07:34]} Ne4 {[%emt 0:08:14]} 21. Rxc8 {
[%emt 0:01:46]} Rxc8 {[%emt 0:01:04]} 22. Rxc8+ {[%emt 0:00:28]} Bxc8 {[%emt 0:
00:00]} 23. Qb8 {[%emt 0:04:55]} Qc5 {[%emt 0:01:54]} 24. h3 {[%emt 0:16:59]}
Qc1+ {[%emt 0:02:07]} 25. Kh2 {[%emt 0:00:01]} Nxf2 {[%emt 0:01:59]} 26. Bxa6 {
[%emt 0:00:17]} Qh1+ {[%emt 0:01:31]} 27. Kg3 {[%emt 0:00:05]} Ne4+ {[%emt 0:
00:00]} 28. Kf3 {[%emt 0:00:16]} Qd1+ {[%emt 0:02:13]} 29. Be2 {[%emt 0:00:07]}
Qe1 {[%emt 0:04:47]} 30. Qxc8+ {[%emt 0:00:39]} Kg7 {[%emt 0:00:15]} 31. Ne6+ {
[%emt 0:03:08]} fxe6 {[%emt 0:00:40]} 32. Qc7+ {[%emt 0:00:03]} Kh6 {[%emt 0:
00:00]} 33. Qf4+ {[%emt 0:00:48]} Ng5+ {[%emt 0:04:56]} 0-1

[Event "44th Chess Olympiad Open 2022"]
[Site "Chennai"]
[Date "2022.07.31"]
[Round "3.71"]
[White "da Conceicao, Marcos"]
[Black "Ibrahim Alwahsh"]
[Result "0-1"]
[WhiteElo "1713"]
[BlackElo "2058"]
[Annotator "NA"]
[PlyCount "88"]
[EventDate "2022.??.??"]
[TimeControl "60"]

1. d4 {[%emt 0:00:25]} Nf6 {[%emt 0:00:22]} 2. Bf4 {[%emt 0:00:34]} g6 {
[%emt 0:00:14]} 3. e3 {[%emt 0:01:38]} d6 {[%emt 0:00:49]} 4. Bd3 {[%emt 0:00:
00]} Bg7 {[%emt 0:00:43]} 5. Nf3 {[%emt 0:01:59]} Nh5 {[%emt 0:00:43]} 6. Bg3 {
[%emt 0:00:23]} Nxg3 {[%emt 0:00:21]} 7. hxg3 {[%emt 0:00:35]} e6 {[%emt 0:00:
00]} 8. Nc3 {[%emt 0:03:47]} Nc6 {[%emt 0:01:10]} 9. a3 {[%emt 0:00:41]} Bd7 {
[%emt 0:02:02]} 10. Qd2 {[%emt 0:06:03]} a6 {[%emt 0:07:25]} 11. Nh2 {[%emt 0:
00:00]} f5 {[%emt 0:11:02]} 12. g4 {[%emt 0:02:56]} f4 {[%emt 0:24:34]} 13. Nf3
{[%emt 0:00:22]} fxe3 {[%emt 0:02:18]} 14. fxe3 {[%emt 0:01:55]} Ne7 {[%emt 0:
00:00]} 15. O-O-O {[%emt 0:00:29]} h6 {[%emt 0:05:40]} 16. Rdf1 {[%emt 0:07:15]
} O-O {[%emt 0:02:20]} 17. e4 {[%emt 0:00:48]} g5 {[%emt 0:02:20]} 18. e5 {
[%emt 0:03:04]} Nc6 {[%emt 0:03:20]} 19. Qe3 {[%emt 0:05:26]} d5 {[%emt 0:00:
00]} 20. Bg6 {[%emt 0:03:20]} Be8 {[%emt 0:01:19]} 21. Qd3 {[%emt 0:02:45]} Rf4
{[%emt 0:04:29]} 22. Ne2 {[%emt 0:01:54]} Rxg4 {[%emt 0:00:39]} 23. Nh2 {
[%emt 0:02:10]} Rxg2 {[%emt 0:03:05]} 24. Bxe8 {[%emt 0:02:55]} Qxe8 {[%emt 0:
00:00]} 25. Qf3 {[%emt 0:00:37]} Rxe2 {[%emt 0:00:11]} 26. Qxe2 {[%emt 0:01:06]
} Nxd4 {[%emt 0:00:05]} 27. Qe3 {[%emt 0:01:21]} Nf5 {[%emt 0:00:44]} 28. Qe1 {
[%emt 0:02:25]} Qg6 {[%emt 0:02:10]} 29. Ng4 {[%emt 0:01:25]} Rf8 {[%emt 0:00:
00]} 30. Qc3 {[%emt 0:04:33]} Rf7 {[%emt 0:01:39]} 31. Rf2 {[%emt 0:01:18]} h5
{[%emt 0:01:47]} 32. Nh2 {[%emt 0:01:51]} g4 {[%emt 0:00:14]} 33. Rg2 {[%emt 0:
00:00]} Nh4 {[%emt 0:00:30]} 34. Rg3 {[%emt 0:01:03]} Qg5+ {[%emt 0:00:23]} 35.
Kb1 {[%emt 0:00:16]} Bxe5 {[%emt 0:01:21]} 36. Qe1 {[%emt 0:01:52]} Bxg3 {
[%emt 0:00:12]} 37. Qxg3 {[%emt 0:00:18]} Ng6 {[%emt 0:01:31]} 38. Re1 {
[%emt 0:01:04]} e5 {[%emt 0:00:09]} 39. Qb3 {[%emt 0:01:58]} c6 {[%emt 0:00:09]
} 40. Nf1 {[%emt 0:01:11]} h4 {[%emt 0:00:19]} 41. Qb4 {[%emt 0:31:57]} g3 {
[%emt 0:30:28]} 42. Ne3 {[%emt 0:01:35]} h3 {[%emt 0:00:19]} 43. Qc5 {[%emt 0:
00:00]} d4 {[%emt 0:00:48]} 44. Nc4 {[%emt 0:00:27]} g2 {[%emt 0:00:19]} 0-1

[Event "44th Chess Olympiad Open 2022"]
[Site "Chennai"]
[Date "2022.07.31"]
[Round "3.71"]
[White "Guterres, Cosme"]
[Black "Ahmad, Al Khatib"]
[Result "0-1"]
[WhiteElo "1692"]
[BlackElo "2244"]
[Annotator "RC"]
[PlyCount "112"]
[EventDate "2022.??.??"]
[TimeControl "60"]

1. d4 {[%emt 0:01:59]} d5 {[%emt 0:01:08]} 2. Nf3 {[%emt 0:00:03]} Nf6 {
[%emt 0:00:05]} 3. Bf4 {[%emt 0:00:23]} c5 {[%emt 0:00:07]} 4. e3 {[%emt 0:00:
00]} Nc6 {[%emt 0:00:11]} 5. c3 {[%emt 0:00:08]} Qb6 {[%emt 0:00:19]} 6. Qc1 {
[%emt 0:00:15]} Bf5 {[%emt 0:02:10]} 7. Nbd2 {[%emt 0:00:20]} e6 {[%emt 0:00:
00]} 8. Be2 {[%emt 0:00:14]} Be7 {[%emt 0:01:04]} 9. O-O {[%emt 0:00:35]} h6 {
[%emt 0:00:43]} 10. Re1 {[%emt 0:00:13]} O-O {[%emt 0:02:36]} 11. Bg3 {[%emt 0:
00:00]} Rac8 {[%emt 0:01:41]} 12. a3 {[%emt 0:00:38]} Bh7 {[%emt 0:01:08]} 13.
Kh1 {[%emt 0:01:53]} Rfd8 {[%emt 0:07:32]} 14. h3 {[%emt 0:01:26]} a6 {[%emt 0:
00:00]} 15. Kg1 {[%emt 0:00:30]} Ne8 {[%emt 0:03:12]} 16. Bf1 {[%emt 0:01:43]}
Nd6 {[%emt 0:00:53]} 17. Be2 {[%emt 0:02:39]} cxd4 {[%emt 0:05:00]} 18. exd4 {
[%emt 0:01:26]} Nf5 {[%emt 0:00:08]} 19. Bd3 {[%emt 0:02:31]} Nxg3 {[%emt 0:00:
00]} 20. Bxh7+ {[%emt 0:00:53]} Kxh7 {[%emt 0:00:00]} 21. fxg3 {[%emt 0:00:39]}
Kg8 {[%emt 0:00:50]} 22. Qb1 {[%emt 0:00:36]} Bd6 {[%emt 0:05:04]} 23. Nf1 {
[%emt 0:00:36]} e5 {[%emt 0:02:38]} 24. Kh1 {[%emt 0:00:55]} exd4 {[%emt 0:00:
00]} 25. cxd4 {[%emt 0:00:39]} Nxd4 {[%emt 0:00:25]} 26. Nxd4 {[%emt 0:00:24]}
Qxd4 {[%emt 0:00:07]} 27. Re2 {[%emt 0:01:24]} g6 {[%emt 0:17:34]} 28. Qe1 {
[%emt 0:01:05]} Qf6 {[%emt 0:02:51]} 29. Ne3 {[%emt 0:02:38]} Qg5 {[%emt 0:00:
00]} 30. Nf1 {[%emt 0:00:43]} Bf8 {[%emt 0:08:00]} 31. Rd1 {[%emt 0:00:28]} d4
{[%emt 0:03:37]} 32. Red2 {[%emt 0:02:43]} Bg7 {[%emt 0:02:22]} 33. Nh2 {
[%emt 0:00:33]} d3 {[%emt 0:03:50]} 34. Nf3 {[%emt 0:01:01]} Qb5 {[%emt 0:00:
00]} 35. Qe4 {[%emt 0:01:37]} Bxb2 {[%emt 0:04:03]} 36. Rxd3 {[%emt 0:01:14]}
Rxd3 {[%emt 0:00:00]} 37. Rxd3 {[%emt 0:01:05]} Re8 {[%emt 0:00:36]} 38. Qd5 {
[%emt 0:01:13]} Qxd5 {[%emt 0:00:16]} 39. Rxd5 {[%emt 0:00:15]} Bxa3 {[%emt 0:
00:00]} 40. Rd7 {[%emt 0:00:39]} Re7 {[%emt 0:00:20]} 41. Rd3 {[%emt 0:31:32]}
Bc5 {[%emt 0:30:29]} 42. g4 {[%emt 0:00:47]} a5 {[%emt 0:00:47]} 43. Nd2 {
[%emt 0:01:07]} Re1+ {[%emt 0:00:25]} 44. Kh2 {[%emt 0:00:36]} Rd1 {[%emt 0:00:
00]} 45. Kg3 {[%emt 0:03:12]} Bb4 {[%emt 0:00:48]} 46. Kf3 {[%emt 0:00:08]}
Rxd2 {[%emt 0:00:07]} 47. Re3 {[%emt 0:00:37]} a4 {[%emt 0:01:00]} 48. Re4 {
[%emt 0:00:31]} Rb2 {[%emt 0:00:10]} 49. h4 {[%emt 0:00:37]} Rb3+ {[%emt 0:00:
00]} 50. Ke2 {[%emt 0:00:36]} a3 {[%emt 0:00:21]} 51. Re8+ {[%emt 0:00:56]} Kg7
{[%emt 0:00:07]} 52. Ra8 {[%emt 0:01:49]} b6 {[%emt 0:00:10]} 53. Rc8 {[%emt 0:
00:00]} Rc3 {[%emt 0:00:09]} 54. Rd8 {[%emt 0:00:43]} Rc1 {[%emt 0:00:13]} 55.
Rd3 {[%emt 0:00:38]} a2 {[%emt 0:00:16]} 56. Rb3 {[%emt 0:00:56]} Bc5 {[%emt 0:
00:00]} 0-1

[Event "44th Chess Olympiad Open 2022"]
[Site "Chennai"]
[Date "2022.07.31"]
[Round "3.72"]
[White "Iclicki, Willy"]
[Black "Masiala Mayuku, Eddy"]
[Result "1-0"]
[WhiteElo "1975"]
[BlackElo "1574"]
[Annotator "NA RC"]
[PlyCount "77"]
[EventDate "2022.??.??"]
[TimeControl "60"]

1. d4 {[%emt 0:00:02]} e6 {[%emt 0:01:21]} 2. c4 {[%emt 0:00:13]} Bb4+ {
[%emt 0:02:01]} 3. Nd2 {[%emt 0:02:05]} Be7 {[%emt 0:00:56]} 4. e3 {[%emt 0:00:
00]} Nf6 {[%emt 0:01:03]} 5. Bd3 {[%emt 0:00:32]} b6 {[%emt 0:00:51]} 6. Ngf3 {
[%emt 0:01:42]} Bb7 {[%emt 0:00:50]} 7. b3 {[%emt 0:01:00]} Nc6 {[%emt 0:01:08]
} 8. Bb2 {[%emt 0:01:07]} Nb4 {[%emt 0:01:12]} 9. Bb1 {[%emt 0:00:35]} a5 {
[%emt 0:00:40]} 10. a3 {[%emt 0:01:00]} Nc6 {[%emt 0:00:59]} 11. O-O {[%emt 0:
00:00]} d5 {[%emt 0:04:28]} 12. Bd3 {[%emt 0:05:18]} Nb8 {[%emt 0:00:41]} 13.
Qc2 {[%emt 0:05:18]} Nbd7 {[%emt 0:02:13]} 14. Rfe1 {[%emt 0:04:08]} Ng4 {
[%emt 0:01:18]} 15. e4 {[%emt 0:09:44]} c6 {[%emt 0:01:11]} 16. Re2 {[%emt 0:
00:00]} Ndf6 {[%emt 0:01:04]} 17. Rae1 {[%emt 0:06:26]} O-O {[%emt 0:02:25]}
18. h3 {[%emt 0:01:40]} Nh6 {[%emt 0:00:37]} 19. e5 {[%emt 0:02:55]} Nh5 {
[%emt 0:01:07]} 20. Bxh7+ {[%emt 0:10:14]} Kh8 {[%emt 0:00:33]} 21. g3 {
[%emt 0:01:27]} Bc8 {[%emt 0:01:57]} 22. Bd3 {[%emt 0:02:36]} f5 {[%emt 0:00:
00]} 23. Nf1 {[%emt 0:03:33]} Bg5 {[%emt 0:01:48]} 24. Bc1 {[%emt 0:02:32]} Nf7
{[%emt 0:03:07]} 25. N1h2 {[%emt 0:04:39]} g6 {[%emt 0:00:48]} 26. Nxg5 {
[%emt 0:04:25]} Nxg5 {[%emt 0:00:41]} 27. Bxg5 {[%emt 0:02:51]} Qxg5 {[%emt 0:
00:00]} 28. Qd2 {[%emt 0:05:21]} Qxd2 {[%emt 0:00:54]} 29. Rxd2 {[%emt 0:00:15]
} Kh7 {[%emt 0:01:45]} 30. Nf3 {[%emt 0:03:25]} Bd7 {[%emt 0:02:07]} 31. cxd5 {
[%emt 0:01:30]} cxd5 {[%emt 0:01:27]} 32. Rc2 {[%emt 0:01:04]} Kh6 {[%emt 0:00:
00]} 33. Rc7 {[%emt 0:01:51]} Bc8 {[%emt 0:01:01]} 34. h4 {[%emt 0:00:56]} Rg8
{[%emt 0:02:44]} 35. Ng5 {[%emt 0:00:23]} Ng7 {[%emt 0:00:51]} 36. Rec1 {
[%emt 0:01:09]} Kh5 {[%emt 0:01:07]} 37. Nf7 {[%emt 0:03:35]} f4 {[%emt 0:00:
00]} 38. Be2+ {[%emt 0:00:23]} f3 {[%emt 0:05:53]} 39. Bxf3# {[%emt 0:00:13]}
1-0